bitfinex-derivatives/quotes_BTCF0:USTF0_20241203
["timestamp","ask_amount","ask_price","bid_price","bid_amount"]
[1733241791780,0.55408,95794.0,95793.0,0.054177]
[1733241791983,0.70828855,95794.0,95793.0,0.054177]
[1733241792179,0.3768,95794.0,95793.0,0.15004376]
[1733241792389,0.55412,95794.0,95793.0,0.15004376]
[1733241792689,0.55412,95794.0,95793.0,0.054177]
[1733241794287,0.55412,95794.0,95793.0,0.15004376]
[1733241794488,0.55412,95794.0,95793.0,0.054177]
[1733241794674,0.3768,95794.0,95793.0,0.054177]
[1733241794878,0.55412,95794.0,95793.0,0.054177]
[1733241795190,0.50001693,95794.0,95793.0,0.054177]
[1733241795385,0.50001693,95794.0,95793.0,0.15004376]
[1733241795386,0.3768,95794.0,95793.0,0.15004376]
[1733241795888,0.55412,95794.0,95793.0,0.15004376]
[1733241797085,0.3768,95794.0,95793.0,0.15004376]
[1733241797296,0.3768,95794.0,95793.0,0.054177]
[1733241797491,0.55412,95794.0,95793.0,0.054177]
[1733241797785,0.3768,95794.0,95793.0,0.054177]
[1733241797985,0.46913918,95794.0,95793.0,0.054177]
[1733241798190,0.55408,95794.0,95793.0,0.054177]
[1733241798379,0.6464151,95794.0,95793.0,0.054177]
[1733241798780,0.55408,95794.0,95793.0,0.054177]
[1733241799393,0.55408,95794.0,95793.0,0.002]
[1733241799991,0.55408,95794.0,95793.0,0.054177]
[1733241800495,0.55408,95794.0,95793.0,0.15004376]
[1733241800496,0.317625,95794.0,95793.0,0.15004376]
[1733241800787,0.17728,95803.0,95793.0,0.51084376]
[1733241800988,0.17728,95803.0,95802.0,0.052172]
[1733241801188,0.12321693,95809.0,95808.0,0.052169]
[1733241801391,0.17728,95809.0,95808.0,0.052169]
[1733241802090,0.3608,95810.0,95809.0,0.052169]
[1733241802483,0.17728,95810.0,95809.0,0.052209]
[1733241802986,2.5e-07,95814.0,95813.0,0.052166]
[1733241803180,0.17728025,95814.0,95813.0,0.052166]
[1733241803385,2.5e-07,95814.0,95813.0,0.14807276]
[1733241803581,2.5e-07,95814.0,95813.0,0.052206]
[1733241804096,0.17728025,95814.0,95813.0,0.052206]
[1733241804487,0.20688297,95814.0,95813.0,0.052206]
[1733241804807,0.20688297,95814.0,95813.0,0.053206]
[1733241804988,0.32993279,95814.0,95813.0,0.054206]
[1733241805196,0.20688297,95814.0,95813.0,0.054206]
[1733241805493,0.3315976,95814.0,95813.0,0.054206]
[1733241805884,0.20846732,95814.0,95813.0,0.054206]
[1733241806192,0.36667587,95814.0,95813.0,0.054206]
[1733241806387,1.00020215,95814.0,95788.0,0.05218]
[1733241806585,1.00020215,95814.0,95776.0,0.0916]
[1733241806586,0.3608,95790.0,95776.0,0.0131]
[1733241806787,0.3608,95790.0,95778.0,0.052186]
[1733241806788,0.3608,95779.0,95778.0,0.052186]
[1733241807690,0.36238435,95779.0,95778.0,0.052186]
[1733241807887,0.36338435,95779.0,95778.0,0.053186]
[1733241808489,0.89276243,95789.0,95778.0,0.053186]
[1733241808490,0.07494076,95783.0,95778.0,0.14905276]
[1733241808690,0.43883225,95789.0,95781.0,0.052184]
[1733241808691,0.104793,95782.0,95781.0,0.052184]
[1733241808890,0.040834,95782.0,95781.0,0.412984]
[1733241809092,0.43883225,95789.0,95788.0,0.05218]
[1733241809304,0.61615225,95789.0,95788.0,0.05218]
[1733241809490,0.66692536,95789.0,95788.0,0.14804676]
[1733241810202,0.66692536,95789.0,95788.0,0.05218]
[1733241810799,0.66992619,95789.0,95788.0,0.05318]
[1733241810992,0.67892619,95789.0,95788.0,0.05418]
[1733241811592,0.79839867,95789.0,95788.0,0.05418]
[1733241811997,0.67892619,95789.0,95788.0,0.15004676]
[1733241812697,0.50160619,95789.0,95788.0,0.15004676]
[1733241812892,0.67592619,95789.0,95788.0,0.05318]
[1733241813087,0.67792619,95789.0,95788.0,0.05418]
[1733241813304,0.79725783,95789.0,95788.0,0.05418]
[1733241815300,1.01326758,95789.0,95788.0,0.05418]
[1733241815603,0.79725783,95789.0,95788.0,0.05418]
[1733241815798,1.01326758,95789.0,95788.0,0.05418]
[1733241816098,1.01442834,95789.0,95788.0,0.05418]
[1733241816303,0.93627336,95789.0,95788.0,0.05418]
[1733241816695,0.79725783,95789.0,95788.0,0.05418]
[1733241817097,1.01452444,95789.0,95788.0,0.05418]
[1733241817303,0.9357856,95789.0,95788.0,0.05418]
[1733241817799,0.56401283,95789.0,95788.0,0.05418]
[1733241818004,0.55033437,95789.0,95788.0,0.15004676]
[1733241818203,0.21736497,95792.0,95791.0,0.052178]
[1733241818506,0.17732,95798.0,95797.0,0.052175]
[1733241818897,0.17732,95798.0,95797.0,0.14804176]
[1733241819298,0.17744946,95798.0,95797.0,0.14804176]
[1733241819492,0.17744946,95798.0,95797.0,0.14808176]
[1733241819705,0.17944946,95798.0,95797.0,0.14908176]
[1733241821304,0.18844946,95798.0,95797.0,0.15008176]
[1733241822599,0.18644946,95798.0,95797.0,0.15008176]
[1733241822795,0.18144946,95798.0,95797.0,0.14908176]
[1733241823200,0.18144946,95798.0,95797.0,0.14808176]
[1733241823510,0.18144946,95798.0,95797.0,0.14908176]
[1733241823809,0.17744946,95798.0,95797.0,0.14808176]
[1733241824002,0.18144946,95798.0,95797.0,0.15008176]
[1733241825311,0.23362446,95798.0,95797.0,0.00204]
[1733241825607,0.18144946,95798.0,95775.0,0.3608]
[1733241825807,0.18144946,95798.0,95775.0,0.45666676]
[1733241825808,0.10466068,95785.0,95775.0,0.45666676]
[1733241826107,8.001e-05,95776.0,95775.0,0.50885376]
[1733241826307,8.001e-05,95776.0,95775.0,0.412987]
[1733241827006,8.001e-05,95776.0,95775.0,0.413987]
[1733241827508,0.00408001,95776.0,95775.0,0.413987]
[1733241827908,0.03493121,95776.0,95775.0,0.413987]
[1733241828208,0.00408001,95776.0,95775.0,0.413987]
[1733241828412,0.11708203,95776.0,95775.0,0.413987]
[1733241829009,0.11708203,95776.0,95775.0,0.053187]
[1733241833215,0.00408001,95776.0,95775.0,0.053187]
[1733241833411,0.16786159,95776.0,95775.0,0.053187]
[1733241833620,0.16786159,95776.0,95762.0,0.052194]
[1733241833621,0.22012776,95776.0,95762.0,0.052194]
[1733241833806,0.10466068,95772.0,95764.0,0.052193]
[1733241834112,0.34102158,95771.0,95770.0,0.05219]
[1733241834312,0.34102158,95771.0,95760.0,0.00013411]
[1733241834514,0.3608,95762.0,95761.0,0.052195]
[1733241834821,0.52398084,95762.0,95761.0,0.052195]
[1733241835402,0.65474065,95762.0,95761.0,0.052195]
[1733241835911,0.65574065,95762.0,95761.0,0.052195]
[1733241836409,0.52698084,95762.0,95761.0,0.053195]
[1733241836713,0.52698084,95762.0,95761.0,0.14906176]
[1733241836714,0.70422084,95762.0,95761.0,0.14906176]
[1733241836916,0.08881084,95762.0,95761.0,0.14806176]
[1733241837106,0.1542089,95774.0,95761.0,0.09686676]
[1733241837304,7.917e-05,95776.0,95775.0,0.052187]
[1733241837305,1.7e-07,95776.0,95775.0,0.052187]
[1733241837509,1.7e-07,95776.0,95775.0,0.14805376]
[1733241838303,0.18608169,95776.0,95775.0,0.14805376]
[1733241838509,1.7e-07,95776.0,95775.0,0.14805376]
[1733241839016,0.18324017,95776.0,95775.0,0.14805376]
[1733241839220,0.18324017,95776.0,95775.0,0.052187]
[1733241839614,0.17724017,95776.0,95775.0,0.053187]
[1733241839915,0.18424017,95776.0,95775.0,0.053187]
[1733241840116,0.00700017,95776.0,95775.0,0.14905376]
[1733241840307,0.19324017,95776.0,95775.0,0.15005376]
[1733241841507,0.19324017,95776.0,95775.0,0.51085376]
[1733241842515,0.19324017,95776.0,95775.0,0.414987]
[1733241842717,0.01600017,95776.0,95775.0,0.054187]
[1733241842916,0.19224017,95776.0,95775.0,0.054187]
[1733241843107,0.31658332,95776.0,95775.0,0.054187]
[1733241843420,0.31659656,95776.0,95775.0,0.053187]
[1733241843716,0.18924017,95776.0,95775.0,0.054187]
[1733241844115,0.31233071,95776.0,95775.0,0.054187]
[1733241844809,0.18224017,95776.0,95775.0,0.053187]
[1733241845011,0.18324017,95776.0,95775.0,0.053187]
[1733241845314,0.18324017,95776.0,95775.0,0.15005376]
[1733241845315,0.01400017,95776.0,95775.0,0.15005376]
[1733241845515,0.9576557,95790.0,95775.0,0.15005376]
[1733241845516,0.24847554,95788.0,95775.0,0.09786676]
[1733241845712,0.27880045,95794.0,95785.0,0.3608]
[1733241845713,0.17724,95792.0,95785.0,0.3608]
[1733241845915,0.17724,95792.0,95791.0,0.052178]
[1733241846116,0.27880045,95806.0,95800.0,0.052173]
[1733241846416,0.27880045,95806.0,95792.0,0.052178]
[1733241846417,0.24818551,95804.0,95803.0,0.052172]
[1733241846619,0.12451478,95804.0,95803.0,0.052172]
[1733241846914,0.12451478,95804.0,95803.0,0.50883876]
[1733241847219,0.17724,95821.0,95820.0,0.052163]
[1733241847420,0.63960045,95835.0,95820.0,0.3608]
[1733241847421,0.17724,95825.0,95820.0,0.3608]
[1733241847723,0.24818551,95831.0,95823.0,0.052161]
[1733241847920,0.30977827,95849.0,95833.0,0.052155]
[1733241848117,0.490939,95863.0,95853.0,0.052144]
[1733241848315,0.490939,95863.0,95846.0,0.3608]
[1733241848316,0.17736104,95862.0,95846.0,0.3608]
[1733241848618,0.17736104,95862.0,95859.0,0.052141]
[1733241848619,0.25900947,95861.0,95859.0,0.052141]
[1733241848816,0.6129011,95862.0,95846.0,0.3608]
[1733241848817,0.17724,95860.0,95846.0,0.3608]
[1733241849118,0.17724,95859.0,95858.0,0.052142]
[1733241849326,0.00012104,95862.0,95861.0,0.05214]
[1733241849625,0.17736104,95862.0,95861.0,0.05218]
[1733241850129,0.1861099,95862.0,95861.0,0.05218]
[1733241850317,0.17736104,95862.0,95861.0,0.05218]
[1733241850512,0.3633099,95862.0,95861.0,0.05218]
[1733241850721,0.17732104,95862.0,95861.0,0.14804676]
[1733241851116,0.00012104,95862.0,95861.0,0.14804676]
[1733241851622,0.15474109,95877.0,95876.0,0.052132]
[1733241851929,0.1772,95880.0,95876.0,0.50883876]
[1733241851930,0.15474109,95878.0,95876.0,0.50883876]
[1733241852227,0.03062183,95880.0,95879.0,0.05213]
[1733241852422,0.1772,95888.0,95887.0,0.052126]
[1733241852620,8.106e-05,95888.0,95887.0,0.412926]
[1733241852920,8.106e-05,95888.0,95887.0,0.412966]
[1733241852921,0.17728106,95888.0,95887.0,0.412966]
[1733241853117,8.106e-05,95888.0,95887.0,0.412966]
[1733241853316,8.106e-05,95888.0,95887.0,0.50883276]
[1733241853527,8.106e-05,95888.0,95887.0,0.50983276]
[1733241855114,8.106e-05,95888.0,95887.0,0.50883276]
[1733241855321,8.106e-05,95888.0,95887.0,0.50983276]
[1733241855624,8.106e-05,95888.0,95887.0,0.51083276]
[1733241855832,0.27716,95900.0,95899.0,0.05212]
[1733241856124,0.27716,95900.0,95899.0,0.05216]
[1733241856315,0.1,95900.0,95899.0,0.14802676]
[1733241856719,0.10010682,95900.0,95899.0,0.14802676]
[1733241857224,0.13072564,95900.0,95899.0,0.14802676]
[1733241858022,0.13072564,95900.0,95899.0,0.14902676]
[1733241858230,0.13072564,95900.0,95899.0,0.15002676]
[1733241858619,0.30784564,95900.0,95899.0,0.14902676]
[1733241858820,0.30784564,95900.0,95899.0,0.15002676]
[1733241859722,0.13072564,95900.0,95899.0,0.15002676]
[1733241859923,0.30780564,95900.0,95899.0,0.15002676]
[1733241860931,0.13072564,95900.0,95899.0,0.15002676]
[1733241861122,0.30780564,95900.0,95899.0,0.15002676]
[1733241861935,0.30780564,95900.0,95899.0,0.05416]
[1733241863422,0.10010682,95900.0,95899.0,0.15002676]
[1733241863623,0.0904,95926.0,95899.0,0.15002676]
[1733241863624,0.3608,95930.0,95929.0,0.052103]
[1733241863828,0.57002174,95930.0,95929.0,0.052103]
[1733241864028,0.57002174,95930.0,95929.0,0.14800976]
[1733241864631,0.57014072,95930.0,95929.0,0.14800976]
[1733241864834,0.57014072,95930.0,95929.0,0.14900976]
[1733241865227,0.57014072,95930.0,95929.0,0.15000976]
[1733241866135,0.39042072,95930.0,95929.0,0.15000976]
[1733241866429,0.57014072,95930.0,95929.0,0.15000976]
[1733241866825,1.18199671,95930.0,95899.0,0.02086739]
[1733241867030,1.18199671,95930.0,95906.0,0.052115]
[1733241867031,0.052115,95907.0,95906.0,0.052115]
[1733241867232,0.85139417,95907.0,95906.0,0.052115]
[1733241867434,1.18755672,95907.0,95906.0,0.14798176]
[1733241867634,1.18755672,95907.0,95906.0,0.09586676]
[1733241867825,1.18755672,95907.0,95878.0,0.0105]
[1733241867826,1.53970015,95907.0,95879.0,0.3608]
[1733241868333,0.052119,95901.0,95900.0,0.052118]
[1733241868739,0.20947463,95901.0,95900.0,0.052118]
[1733241868931,0.31375752,95901.0,95900.0,0.052118]
[1733241869239,0.052121,95897.0,95885.0,0.052127]
[1733241869533,0.51789411,95896.0,95895.0,0.052121]
[1733241869923,0.3608,95896.0,95895.0,0.052121]
[1733241870737,0.3628,95896.0,95895.0,0.053121]
[1733241871424,0.3608,95896.0,95895.0,0.052121]
[1733241871627,0.3628,95896.0,95895.0,0.053121]
[1733241871834,0.39292297,95896.0,95895.0,0.053121]
[1733241872235,0.39292297,95896.0,95895.0,0.054121]
[1733241872433,0.54956005,95896.0,95895.0,0.054121]
[1733241873335,0.39292297,95896.0,95895.0,0.054121]
[1733241873536,0.57164297,95896.0,95895.0,0.054121]
[1733241873729,0.57164297,95896.0,95895.0,0.053121]
[1733241874030,0.57164297,95896.0,95895.0,0.054121]
[1733241874429,0.62276397,95896.0,95895.0,0.053121]
[1733241874733,0.77958189,95896.0,95895.0,0.002]
[1733241874934,0.77958189,95896.0,95875.0,0.052132]
[1733241874935,1.13182167,95896.0,95875.0,0.052132]
[1733241875135,1.13182167,95896.0,95870.0,0.052135]
[1733241875136,0.052131,95878.0,95870.0,0.052135]
[1733241875335,0.3608,95871.0,95870.0,0.052135]
[1733241875637,0.3608,95871.0,95847.0,0.3608]
[1733241875638,0.05214,95863.0,95862.0,0.052139]
[1733241875834,0.17972,95863.0,95862.0,0.052139]
[1733241876137,0.17984001,95863.0,95862.0,0.052139]
[1733241876337,0.17984001,95863.0,95858.0,0.052141]
[1733241876338,0.052142,95859.0,95858.0,0.052141]
[1733241876726,0.15659357,95859.0,95858.0,0.052141]
[1733241877436,0.15659357,95859.0,95847.0,0.3608]
[1733241877735,0.00012001,95848.0,95847.0,0.3608]
[1733241878034,0.17940995,95848.0,95847.0,0.412948]
[1733241879125,0.18140995,95848.0,95847.0,0.413948]
[1733241879338,0.002,95848.0,95847.0,0.413948]
[1733241879539,0.18172,95848.0,95847.0,0.50981476]
[1733241879730,0.002,95848.0,95847.0,0.50981476]
[1733241879933,0.18172,95848.0,95847.0,0.50981476]
[1733241880240,0.1248919,95859.0,95858.0,0.052142]
[1733241880429,0.3046519,95859.0,95858.0,0.052142]
[1733241880629,0.28171261,95859.0,95858.0,0.052182]
[1733241880825,0.51361361,95859.0,95858.0,0.052182]
[1733241881032,0.38872171,95859.0,95858.0,4e-05]
[1733241881734,0.4183968,95859.0,95858.0,4e-05]
[1733241881935,0.5412887,95859.0,95858.0,4e-05]
[1733241882133,0.4183968,95859.0,95858.0,4e-05]
[1733241882338,0.7791968,95859.0,95858.0,0.00104]
[1733241882736,0.7811968,95859.0,95858.0,0.00104]
[1733241883133,0.88551723,95859.0,95858.0,0.00104]
[1733241885343,0.88551723,95859.0,95858.0,4e-05]
[1733241885553,0.88551723,95859.0,95858.0,0.00104]
[1733241885554,0.89460398,95859.0,95858.0,0.00104]
[1733241885845,0.89460398,95859.0,95830.0,0.3713]
[1733241885846,0.052157,95831.0,95830.0,0.0105]
[1733241886144,0.052157,95831.0,95829.0,0.00013416]
[1733241886145,0.052157,95830.0,95829.0,0.00013416]
[1733241886343,0.229557,95830.0,95829.0,0.00013416]
[1733241886536,0.38574086,95830.0,95829.0,0.00013416]
[1733241886840,0.50934323,95830.0,95829.0,0.00013416]
[1733241887043,0.49009177,95830.0,95802.0,0.3713]
[1733241887350,0.49009177,95830.0,95802.0,0.45666676]
[1733241887351,0.3608,95822.0,95802.0,0.45666676]
[1733241887544,0.052164,95818.0,95814.0,0.052166]
[1733241887733,0.052165,95815.0,95814.0,0.052166]
[1733241888047,0.15736017,95815.0,95802.0,0.052172]
[1733241888249,0.15736017,95815.0,95803.0,0.02087901]
[1733241888432,0.052166,95815.0,95811.0,0.052167]
[1733241888638,0.1798,95817.0,95803.0,0.11674577]
[1733241888639,0.052171,95805.0,95803.0,0.09586676]
[1733241888833,7.461e-05,95804.0,95801.0,0.0946]
[1733241889040,0.1798,95803.0,95801.0,0.24263976]
[1733241889342,0.1798,95803.0,95800.0,0.1]
[1733241889541,0.052173,95801.0,95800.0,0.1]
[1733241889733,0.052213,95801.0,95800.0,0.1]
[1733241889935,0.20827246,95801.0,95800.0,0.1]
[1733241890342,0.20827246,95801.0,95800.0,0.152173]
[1733241890549,0.20827246,95801.0,95800.0,0.153173]
[1733241890847,0.31265604,95801.0,95800.0,0.101]
[1733241891438,0.50145604,95801.0,95800.0,0.101]
[1733241892237,0.44928304,95801.0,95800.0,0.153173]
[1733241892433,0.35293946,95801.0,95800.0,0.153173]
[1733241893433,0.17309946,95801.0,95800.0,0.153173]
[1733241893642,0.01704,95801.0,95800.0,0.24903976]
[1733241893841,0.00011461,95804.0,95800.0,0.24903976]
[1733241894140,0.00011461,95804.0,95803.0,0.052212]
[1733241894339,0.17723461,95804.0,95803.0,0.052212]
[1733241894537,0.17723461,95804.0,95803.0,0.14807876]
[1733241895136,0.18623461,95804.0,95803.0,0.14807876]
[1733241895640,0.19323461,95804.0,95803.0,0.14807876]
[1733241896151,0.18623461,95804.0,95803.0,0.14807876]
[1733241896342,0.18623461,95804.0,95803.0,0.14907876]
[1733241896343,0.01711461,95804.0,95803.0,0.14907876]
[1733241896752,0.19423461,95804.0,95803.0,0.14907876]
[1733241898249,0.19423461,95804.0,95803.0,0.053212]
[1733241899647,0.40343671,95804.0,95803.0,0.053212]
[1733241900156,0.17414571,95804.0,95803.0,0.053212]
[1733241900445,0.19423461,95804.0,95803.0,0.14907876]
[1733241900849,0.03059909,95808.0,95803.0,0.14907876]
[1733241900850,0.03059909,95808.0,95807.0,0.05217]
[1733241901053,0.17712,95808.0,95807.0,0.41297]
[1733241901244,0.43952001,95811.0,95807.0,0.41297]
[1733241901245,0.00088001,95811.0,95810.0,0.052168]
[1733241901449,0.3608,95843.0,95829.0,0.052158]
[1733241901450,0.12351136,95836.0,95829.0,0.052158]
[1733241901647,0.17712,95838.0,95837.0,0.052153]
[1733241901849,0.17722095,95838.0,95837.0,0.052153]
[1733241902048,0.17722095,95838.0,95837.0,0.05219301]
[1733241902242,0.17722095,95838.0,95837.0,4.001e-05]
[1733241902243,0.38490976,95838.0,95837.0,4.001e-05]
[1733241902442,0.73713272,95838.0,95823.0,0.3608]
[1733241902639,0.73713272,95838.0,95831.0,0.052157]
[1733241902640,0.3608,95832.0,95831.0,0.052157]
[1733241902843,0.3608,95832.0,95829.0,0.00056]
[1733241902844,0.3608,95833.0,95829.0,0.00056]
[1733241903159,0.3608,95833.0,95823.0,0.50882676]
[1733241903160,0.3007908,95832.0,95831.0,0.052157]
[1733241903349,0.38490238,95832.0,95831.0,0.052157]
[1733241903849,0.50857318,95832.0,95831.0,0.052157]
[1733241904050,0.38490238,95832.0,95831.0,0.052157]
[1733241904354,0.48739067,95832.0,95831.0,0.052157]
[1733241904541,0.36310616,95832.0,95831.0,0.052157]
[1733241904744,0.18598616,95832.0,95831.0,0.052157]
[1733241905051,0.56990645,95832.0,95831.0,0.052157]
[1733241905349,0.20747978,95832.0,95831.0,0.14802376]
[1733241905550,0.17712,95832.0,95831.0,0.14802376]
[1733241906146,0.17712,95832.0,95831.0,0.14902376]
[1733241906453,0.00010095,95838.0,95837.0,0.052153]
[1733241906648,0.03046976,95838.0,95837.0,0.052153]
[1733241906849,0.15507295,95838.0,95837.0,0.14801976]
[1733241907052,0.00010095,95838.0,95837.0,0.14801976]
[1733241908050,0.00010095,95838.0,95837.0,0.14901976]
[1733241908643,0.15506989,95838.0,95837.0,0.14901976]
[1733241908944,0.15506989,95838.0,95837.0,0.15001976]
[1733241909145,0.00010095,95838.0,95837.0,0.15001976]
[1733241909353,0.15496894,95850.0,95837.0,0.23811976]
[1733241909650,0.15496894,95850.0,95849.0,4e-05]
[1733241909850,0.18598886,95857.0,95849.0,4e-05]
[1733241909851,0.15496894,95854.0,95849.0,4e-05]
[1733241910053,0.15496894,95854.0,95852.0,0.052145]
[1733241910353,0.17712,95858.0,95853.0,4e-05]
[1733241910354,0.052144,95855.0,95853.0,4e-05]
[1733241910551,0.1772181,95854.0,95853.0,4e-05]
[1733241910851,0.1772181,95854.0,95849.0,0.001]
[1733241910852,0.007,95850.0,95849.0,0.001]
[1733241911056,0.007,95850.0,95849.0,0.14901376]
[1733241911252,0.00704,95850.0,95849.0,0.14901376]
[1733241911458,4e-05,95850.0,95849.0,0.14801376]
[1733241912354,0.00804,95850.0,95849.0,0.15001376]
[1733241912657,0.13217309,95850.0,95849.0,0.15001376]
[1733241912958,0.00804,95850.0,95849.0,0.15001376]
[1733241913459,0.13213991,95850.0,95849.0,0.15001376]
[1733241913653,0.00804,95850.0,95849.0,0.15001376]
[1733241914353,0.13205884,95850.0,95849.0,0.15001376]
[1733241914556,0.00804,95850.0,95849.0,0.15001376]
[1733241914763,0.00804,95850.0,95849.0,0.51081376]
[1733241915055,0.12399558,95852.0,95851.0,0.052146]
[1733241915253,0.12399558,95854.0,95853.0,0.052145]
[1733241915557,0.12399558,95861.0,95853.0,4e-05]
[1733241915760,0.12399558,95863.0,95860.0,0.3608]
[1733241915962,0.4386,95884.0,95860.0,0.3608]
[1733241915963,0.12399558,95868.0,95867.0,0.052137]
[1733241916254,0.12399558,95868.0,95867.0,0.052177]
[1733241916255,0.00011189,95868.0,95867.0,0.052177]
[1733241917550,0.20591212,95868.0,95867.0,4e-05]
[1733241917753,0.05224789,95868.0,95867.0,0.052177]
[1733241917957,0.05224789,95868.0,95867.0,4e-05]
[1733241918150,0.05224789,95868.0,95837.0,0.02088128]
[1733241918151,0.052138,95867.0,95837.0,0.02088128]
[1733241918353,0.05214,95861.0,95860.0,0.001]
[1733241918659,0.052191,95842.0,95841.0,0.052151]
[1733241918851,0.667791,95842.0,95841.0,0.052151]
[1733241919054,0.00075189,95868.0,95841.0,0.889991]
[1733241919260,0.3608,95896.0,95876.0,0.052132]
[1733241919261,0.0026,95890.0,95876.0,0.052132]
[1733241919460,0.3608,95896.0,95887.0,0.052126]
[1733241919761,0.3608,95896.0,95883.0,0.3608]
[1733241919762,0.17708,95901.0,95900.0,0.052119]
[1733241919961,0.3608,95914.0,95907.0,0.052115]
[1733241920155,0.4392,95917.0,95907.0,0.052115]
[1733241920156,0.20781708,95908.0,95907.0,0.052115]
[1733241920353,0.03073708,95908.0,95907.0,0.052155]
[1733241920553,0.41625229,95908.0,95907.0,4e-05]
[1733241920960,0.23917229,95908.0,95907.0,4e-05]
[1733241921157,0.39281229,95908.0,95907.0,4e-05]
[1733241921355,0.16361729,95908.0,95907.0,0.052155]
[1733241921653,0.00729708,95908.0,95907.0,0.053155]
[1733241921858,0.18437708,95908.0,95907.0,0.053155]
[1733241922260,0.18633708,95908.0,95907.0,0.054155]
[1733241922858,0.18633708,95908.0,95907.0,0.053155]
[1733241923058,0.00929708,95908.0,95907.0,0.00104]
[1733241923367,0.16555239,95908.0,95907.0,0.00204]
[1733241923561,0.34287239,95908.0,95907.0,0.00204]
[1733241924153,0.34287239,95908.0,95907.0,0.054155]
[1733241924560,0.34187239,95908.0,95907.0,0.054155]
[1733241924761,0.39398739,95908.0,95907.0,0.054155]
[1733241924955,0.39398739,95908.0,95907.0,0.00204]
[1733241925162,0.052118,95902.0,95901.0,0.052118]
[1733241925358,0.412918,95902.0,95901.0,0.052118]
[1733241925666,0.56880193,95902.0,95901.0,0.052118]
[1733241926161,0.51668393,95902.0,95901.0,0.052118]
[1733241926561,0.36084,95902.0,95901.0,0.052118]
[1733241927153,0.53816,95902.0,95901.0,0.052118]
[1733241927662,0.53816,95902.0,95901.0,0.053118]
[1733241928157,0.17736,95902.0,95901.0,0.052118]
[1733241928466,0.17732,95902.0,95901.0,0.053118]
[1733241928768,0.17932,95902.0,95901.0,0.054118]
[1733241928959,0.00204,95902.0,95901.0,0.054118]
[1733241929357,0.00010178,95908.0,95907.0,0.052115]
[1733241929664,0.00010178,95908.0,95907.0,0.412955]
[1733241930571,0.00010178,95908.0,95907.0,0.413955]
[1733241930572,0.00110178,95908.0,95907.0,0.413955]
[1733241930964,0.00010178,95908.0,95907.0,0.412955]
[1733241931269,0.00110178,95908.0,95907.0,0.413955]
[1733241932061,0.00110178,95908.0,95907.0,0.414955]
[1733241935473,0.00110178,95908.0,95907.0,0.054155]
[1733241936765,0.00110178,95908.0,95907.0,0.414955]
[1733241937563,0.00110178,95908.0,95907.0,0.43581933]
[1733241939277,7.8e-07,95908.0,95907.0,0.43581933]
[1733241939965,0.18641934,95938.0,95936.0,0.0521]
[1733241940177,0.18641934,95937.0,95936.0,0.0521]
[1733241940382,0.15649896,95940.0,95939.0,0.052098]
[1733241940575,0.00011268,95940.0,95939.0,0.052098]
[1733241940878,0.33399053,95940.0,95939.0,0.052138]
[1733241941176,0.52040024,95940.0,95939.0,0.052138]
[1733241941675,0.23399053,95940.0,95939.0,0.052138]
[1733241941872,0.15663785,95940.0,95939.0,0.052138]
[1733241942176,0.17724,95940.0,95939.0,0.052138]
[1733241942567,0.17734692,95940.0,95939.0,0.052138]
[1733241942973,0.00010692,95940.0,95939.0,0.052138]
[1733241943271,0.00010692,95940.0,95939.0,0.413938]
[1733241943272,0.17734692,95940.0,95939.0,0.413938]
[1733241943677,0.17734692,95940.0,95939.0,0.053138]
[1733241944176,0.17734692,95940.0,95939.0,0.054138]
[1733241944380,0.00010692,95940.0,95939.0,0.054138]
[1733241948470,0.00010692,95940.0,95939.0,0.414938]
[1733241948676,0.15570553,95940.0,95939.0,0.414938]
[1733241949178,0.13223923,95940.0,95939.0,0.414938]
[1733241949373,0.1772,95943.0,95942.0,0.052096]
[1733241949682,0.03029697,95944.0,95939.0,0.414938]
[1733241949980,0.0039,95947.0,95946.0,0.052094]
[1733241950178,0.00399397,95947.0,95946.0,0.052094]
[1733241950481,0.00399397,95947.0,95946.0,0.052134]
[1733241950482,0.03442242,95947.0,95946.0,0.052134]
[1733241950671,0.00399397,95947.0,95946.0,0.052134]
[1733241951470,0.00399397,95947.0,95946.0,0.053134]
[1733241952068,9.7e-07,95947.0,95946.0,0.053134]
[1733241952371,0.18640971,95971.0,95966.0,0.052083]
[1733241952671,0.1772,95974.0,95973.0,0.052079]
[1733241953077,0.20654558,95974.0,95973.0,0.052079]
[1733241953273,0.02945446,95974.0,95973.0,0.052079]
[1733241953581,0.02945446,95974.0,95973.0,0.052119]
[1733241954080,4.5e-07,95974.0,95973.0,0.053119]
[1733241954886,4.5e-07,95974.0,95973.0,0.054119]
[1733241955373,0.02950801,95976.0,95973.0,0.054119]
[1733241955575,0.0851,95998.0,95975.0,0.3878]
[1733241955779,0.0851,95998.0,95997.0,0.052066]
[1733241955982,0.0851,95998.0,95997.0,0.052106]
[1733241956474,0.08521841,95998.0,95997.0,0.052106]
[1733241956871,0.11578724,95998.0,95997.0,0.052106]
[1733241957073,0.29258724,95998.0,95993.0,0.3608]
[1733241957276,0.11578724,95998.0,95993.0,0.3608]
[1733241957477,0.1768,95997.0,95993.0,0.3608]
[1733241957677,0.1768,95997.0,95996.0,0.052067]
[1733241957887,0.1768,95997.0,95993.0,0.3608]
[1733241958181,4e-05,95994.0,95993.0,0.3618]
[1733241958381,4e-05,95994.0,95993.0,0.413869]
[1733241958880,0.1768,95994.0,95993.0,0.413869]
[1733241959787,4e-05,95994.0,95993.0,0.413869]
[1733241960986,0.00204,95994.0,95993.0,0.414869]
[1733241961786,0.00204,95994.0,95993.0,0.413869]
[1733241962086,0.00204,95994.0,95993.0,0.414869]
[1733241962698,0.00204,95994.0,95993.0,0.43571241]
[1733241963796,4e-05,95994.0,95993.0,0.43571241]
[1733241963993,0.00104,95994.0,95993.0,0.43571241]
[1733241966493,0.00011841,95998.0,95997.0,0.052066]
[1733241966692,0.1,96000.0,95997.0,0.052066]
[1733241966693,4.1e-07,96000.0,95999.0,0.052065]
[1733241966995,4.1e-07,96000.0,95999.0,0.412865]
[1733241967311,4.1e-07,96000.0,95999.0,0.712865]
[1733241967602,1.1e-07,96000.0,95999.0,0.412865]
[1733241967800,0.0876,96028.0,96026.0,0.052051]
[1733241967995,0.26872,96027.0,96026.0,0.052051]
[1733241968299,0.42579304,96027.0,96026.0,0.052091]